fUST/lending_fUST_20251024
["ID","MTS","AMOUNT","RATE_DAILY","PERIOD"]
[392184749,1761243048311,-1000.0,0.00024021,2]
[392184750,1761243048321,-1000.0,0.00024021,2]
[392184751,1761243048331,-337.93959275,0.00024021,2]
[392184752,1761243048341,-1000.0,0.00024021,2]
[392184753,1761243048350,-1000.0,0.00024021,2]
[392184754,1761243048361,-1000.0,0.00024021,2]
[392184755,1761243048370,-1000.0,0.00024021,2]
[392184756,1761243048380,-540.62295601,0.00024021,2]
[392184757,1761243048390,-1000.0,0.00024021,2]
[392184758,1761243048401,-1000.0,0.00024021,2]
[392184759,1761243048411,-1000.0,0.00024021,2]
[392184760,1761243048421,-1000.0,0.00024021,2]
[392184761,1761243048432,-1000.0,0.00024021,2]
[392184762,1761243048444,-1000.0,0.00024021,2]
[392184763,1761243048454,-640.08459361,0.00024021,2]
[392184764,1761243048466,-1000.0,0.00024021,2]
[392184765,1761243048475,-1000.0,0.00024021,2]
[392184766,1761243048485,-508.21194354,0.00024021,2]
[392184767,1761243048494,-1000.0,0.00024021,2]
[392184768,1761243048504,-1000.0,0.00024021,2]
[392184769,1761243048514,-1000.0,0.00024021,2]
[392184770,1761243048524,-1000.0,0.00024021,2]
[392184771,1761243048534,-551.63610217,0.00024021,2]
[392184772,1761243048544,-1000.0,0.00024021,2]
[392184773,1761243048556,-1000.0,0.00024021,2]
[392184774,1761243048566,-1000.0,0.00024021,2]
[392184775,1761243048576,-1000.0,0.00024021,2]
[392184776,1761243048588,-216.10483414,0.00024021,2]
[392184777,1761243048598,-1000.0,0.00024021,2]
[392184778,1761243048608,-1000.0,0.00024021,2]
[392184779,1761243048618,-1000.0,0.00024021,2]
[392184780,1761243048627,-1000.0,0.00024021,2]
[392184781,1761243048637,-1000.0,0.00024021,2]
[392184782,1761243048646,-1000.0,0.00024021,2]
[392184783,1761243048656,-1000.0,0.00024021,2]
[392184784,1761243048665,-1000.0,0.00024021,2]
[392184785,1761243048674,-1000.0,0.00024021,2]
[392184786,1761243048684,-1000.0,0.00024021,2]
[392184787,1761243048693,-2168.0,0.0002403,2]
[392184788,1761243048702,-966.0,0.0002403,2]
[392184789,1761243048711,-422.0,0.0002403,2]
[392184790,1761243048721,-500.0,0.0002403,2]
[392184791,1761243048730,-500.0,0.0002403,2]
[392184792,1761243048739,-998.94006604,0.00024032,2]
[392184793,1761243048749,-11214.15323045,0.00024042,2]
[392184794,1761243048757,-1439.995333,0.00024046,2]
[392184795,1761243048767,-7710.46,0.0002405,3]
[392184796,1761243048777,-4764.54,0.0002405,3]
[392184797,1761243048786,-2382.28,0.0002405,3]
[392184798,1761243048795,-1191.14,0.0002405,3]
[392184799,1761243048804,-794.1,0.0002405,3]
[392184800,1761243048814,-529.4,0.0002405,3]
[392184801,1761243048823,-500.0,0.00024059,2]
[392184802,1761243048833,-2051.44300656,0.0002406,7]
[392184803,1761243048843,-1625.57306598,0.0002406,7]
[392184804,1761243048852,-2168.0,0.00024085,2]
[392184805,1761243048862,-966.0,0.00024085,2]
[392184806,1761243048871,-422.0,0.00024085,2]
[392184807,1761243048881,-500.0,0.00024085,2]
[392184808,1761243048891,-500.0,0.00024085,2]
[392184809,1761243048901,-5396.33309867,0.00024112,2]
[392184810,1761243048910,-1000.0,0.00024121,2]
[392184811,1761243048919,-1000.0,0.00024121,2]
[392184812,1761243048928,-1000.0,0.00024121,2]
[392184813,1761243048937,-1000.0,0.00024121,2]
[392184814,1761243048946,-510.06667124,0.00024121,2]
[392184815,1761243048956,-675.66923406,0.00024121,2]
[392184816,1761243048965,-828.38780603,0.00024121,2]
[392184817,1761243048974,-1000.0,0.00024121,2]
[392184818,1761243048983,-1000.0,0.00024121,2]
[392184819,1761243048992,-1000.0,0.00024121,2]
[392184820,1761243049002,-164.0283791,0.00024121,2]
[392184821,1761243049011,-1000.0,0.00024121,2]
[392184822,1761243049020,-306.02791781,0.00024135,2]
[392184823,1761243049035,-2168.0,0.0002414,2]
[392184824,1761243049044,-966.0,0.0002414,2]
[392184825,1761243049053,-422.0,0.0002414,2]
[392184826,1761243049064,-500.0,0.0002414,2]
[392184827,1761243049074,-102119.14163557,0.00024142,2]
[392184828,1761243049083,-210.995933,0.00024142,7]
[392184829,1761243049092,-210.995933,0.00024142,7]
[392184830,1761243049103,-210.995933,0.00024142,7]
[392184831,1761243049113,-210.995941,0.00024142,7]
[392184832,1761243049122,-151.0,0.00024142,7]
[392184833,1761243049131,-260.0,0.00024158,2]
[392184834,1761243049140,-500.0,0.0002416,5]
[392184835,1761243049148,-150.0,0.00024173,2]
[392184836,1761243049157,-158.53346521,0.00024173,2]
[392184837,1761243049166,-2168.0,0.00024195,2]
[392184838,1761243049174,-966.0,0.00024195,2]
[392184839,1761243049183,-422.0,0.00024195,2]
[392184840,1761243049192,-500.0,0.00024195,2]
[392184841,1761243049200,-403.24192968,0.000242,7]
[392184842,1761243049209,-417.15472785,0.000242,7]
[392184843,1761243049217,-720.0,0.00024235,20]
[392184844,1761243049226,-2168.0,0.00024249,2]
[392184845,1761243049299,-966.0,0.00024249,2]
[392184846,1761243049311,-422.0,0.00024249,2]
[392184847,1761243049317,-453.0,0.00024249,2]
[392184848,1761243049326,-403.24192968,0.0002426,3]
[392184849,1761243049336,-500.34956601,0.00024261,2]
[392184850,1761243049345,-1439.995333,0.00024283,2]
[392184851,1761243049355,-2168.0,0.00024304,2]
[392184852,1761243049364,-966.0,0.00024304,2]
[392184853,1761243049374,-422.0,0.00024304,2]
[392184854,1761243049384,-500.22284127,0.00024316,2]
[392184855,1761243049393,-1407.65915778,0.00024316,2]
[392184856,1761243049402,-2000.0,0.00024316,2]
[392184857,1761243049411,-1146.95862069,0.00024316,2]
[392184858,1761243049420,-2000.0,0.00024316,2]
[392184859,1761243049430,-2000.0,0.00024316,2]
[392184860,1761243049438,-1459.24520816,0.00024316,2]
[392184861,1761243049447,-2000.0,0.00024316,2]
[392184862,1761243049456,-2098.6327963,0.00024316,2]
[392184863,1761243049465,-506.95777616,0.00024316,2]
[392184864,1761243049474,-2000.0,0.00024316,2]
[392184865,1761243049483,-2000.0,0.00024316,2]
[392184866,1761243049493,-1754.90978642,0.00024316,2]
[392184867,1761243049502,-2000.0,0.00024316,2]
[392184868,1761243049512,-2000.0,0.00024316,2]
[392184869,1761243049521,-665.52584183,0.00024316,2]
[392184870,1761243049530,-2000.0,0.00024316,2]
[392184871,1761243049540,-2000.0,0.00024316,2]
[392184872,1761243049549,-2000.0,0.00024316,2]
[392184873,1761243049559,-1037.35341875,0.00024316,2]
[392184874,1761243049568,-2000.0,0.00024316,2]
[392184875,1761243049578,-2000.0,0.00024316,2]
[392184876,1761243049587,-2000.0,0.00024316,2]
[392184877,1761243049597,-1922.01784607,0.0002432,2]
[392184878,1761243049606,-500.0,0.00024333,2]
[392184879,1761243049615,-2168.0,0.00024359,2]
[392184880,1761243049624,-966.0,0.00024359,2]
[392184881,1761243049633,-422.0,0.00024359,2]
[392184882,1761243049642,-214.151652,0.00024411,2]
[392184883,1761243049651,-2168.0,0.00024414,2]
[392184884,1761243049660,-966.0,0.00024414,2]
[392184885,1761243049670,-422.0,0.00024414,2]
[392184886,1761243049679,-500.0,0.00024434,5]
[392184887,1761243049688,-2168.0,0.00024468,2]
[392184888,1761243049697,-966.0,0.00024468,2]
[392184889,1761243049707,-422.0,0.00024468,2]
[392184890,1761243049717,-1439.995333,0.00024519,2]
[392184891,1761243049727,-1000.0,0.00024521,2]
[392184892,1761243049737,-2176.80555852,0.00024523,2]
[392184893,1761243049746,-970.0,0.00024523,2]
[392184894,1761243049755,-445.0,0.00024523,2]
[392184895,1761243049766,-1500.0,0.00024568,2]
[392184896,1761243049777,-1500.0,0.00024568,2]
[392184897,1761243049787,-1622.9652031,0.00024568,2]
[392184898,1761243049796,-1500.0,0.00024568,2]
[392184899,1761243049806,-1500.0,0.00024568,2]
[392184900,1761243049816,-928.9512315,0.00024568,2]
[392184901,1761243049825,-763.05843923,0.00024568,2]
[392184902,1761243049835,-1134.68312128,0.00024568,2]
[392184903,1761243049846,-1500.0,0.00024568,2]
[392184904,1761243049856,-1500.0,0.00024568,2]
[392184905,1761243049865,-1500.0,0.00024568,2]
[392184906,1761243049875,-1500.0,0.00024568,2]
[392184907,1761243049886,-1500.0,0.00024568,2]
[392184908,1761243049896,-548.97049182,0.00024568,2]
[392184909,1761243049906,-1500.0,0.00024568,2]
[392184910,1761243049916,-1500.0,0.00024568,2]
[392184911,1761243049926,-874.71343951,0.00024568,2]
[392184912,1761243049937,-1500.0,0.00024568,2]
[392184913,1761243049947,-1500.0,0.00024568,2]
[392184914,1761243049961,-507.10721589,0.00024568,2]
[392184915,1761243049971,-1500.0,0.00024568,2]
[392184916,1761243049982,-716.94131255,0.00024568,2]
[392184917,1761243049992,-1500.0,0.00024568,2]
[392184918,1761243050002,-1500.0,0.00024568,2]
[392184919,1761243050011,-1500.0,0.00024568,2]
[392184920,1761243050023,-1010.72948539,0.00024568,2]
[392184921,1761243050034,-1500.0,0.00024568,2]
[392184922,1761243050044,-1500.0,0.00024568,2]
[392184923,1761243050053,-1500.0,0.00024568,2]
[392184924,1761243050063,-1500.0,0.00024568,2]
[392184925,1761243050072,-1500.0,0.00024568,2]
[392184926,1761243050082,-1500.0,0.00024568,2]
[392184927,1761243050092,-1500.0,0.00024568,2]
[392184928,1761243050101,-1500.0,0.00024568,2]
[392184929,1761243050112,-916.93481961,0.00024568,2]
[392184930,1761243050121,-486.43568193,0.00024607,2]
[392184931,1761243050131,-420.0,0.00024608,2]
[392184932,1761243050140,-1000.0,0.00024628,2]
[392184933,1761243050150,-24959.77217659,0.0002465,2]
[392184934,1761243050159,-150.0,0.00024658,2]
[392184935,1761243050169,-150.0,0.00024658,2]
[392184936,1761243050179,-380.0,0.00024658,2]
[392184937,1761243050188,-343.038995,0.00024658,7]
[392184938,1761243050197,-343.038995,0.00024658,7]
[392184939,1761243050206,-343.038995,0.00024658,7]
[392184940,1761243050215,-343.038995,0.00024658,7]
[392184941,1761243050225,-343.038995,0.00024658,7]
[392184942,1761243050234,-343.038995,0.00024658,7]
[392184943,1761243050243,-343.038995,0.00024658,7]
[392184944,1761243050252,-343.038995,0.00024658,7]
[392184945,1761243050261,-343.038995,0.00024658,7]
[392184946,1761243050271,-343.038995,0.00024658,7]
[392184947,1761243050280,-343.038995,0.00024658,7]
[392184948,1761243050290,-343.038995,0.00024658,7]
[392184949,1761243050299,-343.038995,0.00024658,7]
[392184950,1761243050308,-343.038995,0.00024658,7]
[392184951,1761243050318,-343.038995,0.00024658,7]
[392184952,1761243050327,-343.038995,0.00024658,7]
[392184953,1761243050336,-343.038995,0.00024658,7]
[392184954,1761243050346,-343.038995,0.00024658,7]
[392184955,1761243050355,-343.038995,0.00024658,7]
[392184956,1761243050365,-343.038988,0.00024658,7]
[392184957,1761243050375,-151.0,0.00024658,7]
[392184958,1761243050384,-151.0,0.00024658,7]
[392184959,1761243050394,-151.0,0.00024658,7]
[392184960,1761243050403,-151.0,0.00024658,7]
[392184961,1761243050412,-151.0,0.00024658,7]
[392184962,1761243050422,-151.0,0.00024658,7]
[392184963,1761243050432,-151.0,0.00024658,7]
[392184964,1761243050441,-151.0,0.00024658,7]
[392184965,1761243050450,-151.0,0.00024658,7]
[392184966,1761243050460,-151.0,0.00024658,7]
[392184967,1761243050469,-151.0,0.00024658,7]
[392184968,1761243050478,-151.0,0.00024658,7]
[392184969,1761243050487,-151.0,0.00024658,7]
[392184970,1761243050497,-151.0,0.00024658,7]
[392184971,1761243050506,-151.0,0.00024658,7]
[392184972,1761243050515,-151.0,0.00024658,7]
[392184973,1761243050525,-151.0,0.00024658,7]
[392184974,1761243050534,-182.353176,0.00024658,7]
[392184975,1761243050543,-736.0,0.00024658,2]
[392184976,1761243050553,-500.0,0.00024658,2]
[392184977,1761243050562,-500.0,0.00024658,2]
[392184978,1761243050571,-500.0,0.00024658,2]
[392184979,1761243050580,-500.0,0.00024658,2]
[392184980,1761243050589,-500.0,0.00024658,2]
[392184981,1761243050599,-500.0,0.00024658,2]
[392184982,1761243050610,-500.0,0.00024658,2]
[392184983,1761243050619,-500.0,0.00024658,2]
[392184984,1761243050691,-500.0,0.00024658,2]
[392184985,1761243050700,-610.39697097,0.00024658,2]
[392184986,1761243050710,-500.0,0.00024658,2]
[392184987,1761243050721,-500.0,0.00024658,2]
[392184988,1761243050731,-1621.656604,0.00024668,2]
[392184989,1761243050740,-1500.0,0.00024668,2]
[392184990,1761243050750,-1500.0,0.00024668,2]
[392184991,1761243050759,-1500.0,0.00024668,2]
[392184992,1761243050770,-1500.0,0.00024668,2]
[392184993,1761243050779,-1500.0,0.00024668,2]
[392184994,1761243050789,-1500.0,0.00024668,2]
[392184995,1761243050799,-1500.0,0.00024668,2]
[392184996,1761243050809,-522.21697514,0.00024694,7]
[392184997,1761243050818,-51639.0,0.000247,2]
[392184998,1761243050828,-360.0,0.00024706,2]
[392184999,1761243050838,-500.0,0.00024708,5]
[392185000,1761243050847,-736.0,0.00024713,2]
[392185001,1761243050856,-300.0,0.00024721,2]
[392185002,1761243050866,-19292.03213086,0.00024722,2]
[392185003,1761243051140,-207.60724146,0.00023263,2]
[392185004,1761243051150,-500.0,0.00023473,2]
[392185005,1761243051159,-1000.0,0.00024021,2]
[392185006,1761243051169,-1067.60555379,0.00024568,2]
[392185007,1761243051180,-432.39444621,0.00024568,2]
[392185008,1761243051189,-4742.19439965,0.00024722,2]
[392185009,1761243051729,-3e-08,0.00024722,2]
[392185010,1761243051747,-4553.59346129,0.00024722,2]
[392185011,1761243051756,-1044.0,0.00024723,2]
[392185012,1761243051764,-1439.995333,0.00024756,2]
[392185013,1761243051774,-736.0,0.00024768,2]
[392185014,1761243051783,-940.82,0.00024781,30]
[392185015,1761243051792,-1200.0,0.000248,2]
[392185016,1761243051869,-62563.8037108,0.000248,2]
[392185017,1761243051879,-736.0,0.00024822,2]
[392185018,1761243051888,-1707.42,0.00024864,2]
[392185019,1761243051897,-1621.26686247,0.00024864,2]
[392185020,1761243051906,-2500.0,0.00024864,2]
[392185021,1761243051915,-2500.0,0.00024864,2]
[392185022,1761243051924,-2479.54191128,0.00024864,2]
[392185023,1761243051933,-2500.0,0.00024864,2]
[392185024,1761243051943,-775.98832958,0.00024864,2]
[392185025,1761243051953,-1693.57039158,0.00024864,2]
[392185026,1761243052039,-806.42960842,0.00024864,2]
[392185027,1761243052049,-538.41673651,0.00024864,2]
[392185028,1761243052059,-2500.0,0.00024864,2]
[392185029,1761243052069,-2500.0,0.00024864,2]
[392185030,1761243052078,-1214.99474815,0.00024864,2]
[392185031,1761243052087,-2500.0,0.00024864,2]
[392185032,1761243052096,-2500.0,0.00024864,2]
[392185033,1761243052105,-2500.0,0.00024864,2]
[392185034,1761243052115,-736.0,0.00024877,2]
[392185035,1761243052125,-155.0,0.00024891,2]
[392185036,1761243052134,-161.0,0.000249,4]
[392185037,1761243052143,-161.0,0.000249,4]
[392185038,1761243052152,-161.0,0.000249,4]
[392185039,1761243052162,-403.24192968,0.000249,7]
[392185040,1761243052171,-138.76617252,0.000249,2]
[392185041,1761243052182,-458.19500025,0.000249,2]
[392185042,1761243052295,-1504.903919,0.000222,2]
[392185043,1761243052304,-1000.0,0.000227,2]
[392185044,1761243052314,-1000.0,0.000232,2]
[392185045,1761243052323,-523.04,0.00023589,10]
[392185046,1761243052332,-234.39114986,0.000249,2]
[392185047,1761243052384,922.83216866,0.00022002,2]
[392185048,1761243052405,4077.16783134,0.00022002,2]
[392185049,1761243057041,215.1461385,0.00021636,2]
[392185050,1761243079444,150.0,0.00019275,2]
[392185051,1761243079841,293.93,0.00020193,2]
[392185052,1761243080257,440.9,0.00021111,2]
[392185053,1761243080661,587.87,0.00022029,2]
[392185054,1761243083534,150.0,0.00017581,30]
[392185055,1761243083991,150.0,0.00018418,30]
[392185056,1761243084424,188.96,0.00019255,30]
[392185057,1761243084968,251.94,0.00020093,30]
[392185058,1761243085990,314.93,0.0002093,30]
[392185059,1761243086501,377.91,0.00021767,30]
[392185060,1761243108439,-5000.0,0.00022445,2]
[392185061,1761243117250,0.01,0.00022445,2]
[392185062,1761243117272,4999.99,0.00022445,2]
[392185063,1761243123344,-358.64901352,0.00022525,2]
[392185064,1761243138497,-252.24,0.00022563,10]
[392185065,1761243140257,5000.0,0.00022525,2]
[392185066,1761243149370,210.2,0.00022563,10]
[392185067,1761243151657,207.65443894,0.00022572,2]
[392185068,1761243156495,150.0,0.00019236,2]
[392185069,1761243156767,462.0,0.00022572,2]
[392185070,1761243156888,219.95,0.00020152,2]
[392185071,1761243157136,500.0,0.00022572,2]
[392185072,1761243157171,461.61131764,0.00022572,2]
[392185073,1761243157205,500.0,0.00022572,2]
[392185074,1761243157257,572.01814771,0.00022572,2]
[392185075,1761243157300,329.93,0.00021068,2]
[392185076,1761243157363,500.0,0.00022572,2]
[392185077,1761243157616,382.16609571,0.00022572,2]
[392185078,1761243157645,117.83390429,0.00022572,2]
[392185079,1761243157779,439.9,0.00021984,2]
[392185080,1761243159958,358.8,0.00022563,10]
[392185081,1761243160553,150.0,0.00017873,30]
[392185082,1761243160967,150.0,0.00018724,30]
[392185083,1761243161298,644.24524034,0.00022572,2]
[392185084,1761243161578,150.0,0.00019576,30]
[392185085,1761243161825,188.53,0.00020427,30]
[392185086,1761243162218,235.66,0.00021278,30]
[392185087,1761243162697,282.79,0.00022129,30]
[392185088,1761243162728,5000.0,0.00022573,2]
[392185089,1761243170957,299.0,0.00022563,10]
[392185090,1761243181984,249.16,0.00022563,10]
[392185091,1761243185654,300.0,0.00022572,2]
[392185092,1761243185681,1434.09085537,0.00022573,2]
[392185093,1761243185704,3565.90914463,0.00022573,2]
[392185094,1761243187373,226.86273077,0.00022571,2]
[392185096,1761243193930,207.64,0.00022563,10]
[392185097,1761243199654,-4305.33415476,0.00022573,2]
[392185098,1761243201647,-10000.01,0.00022573,2]
[392185099,1761243201772,-10000.01,0.00022573,2]
[392185100,1761243201919,-10000.01,0.00022573,2]
[392185101,1761243202099,-10000.01,0.00022573,2]
[392185102,1761243202225,-10000.01,0.00022573,2]
[392185103,1761243202356,-10000.01,0.00022573,2]
[392185104,1761243202543,-10000.01,0.00022573,2]
[392185105,1761243233604,150.0,0.00020052,2]
[392185106,1761243234030,272.23,0.00021007,2]
[392185107,1761243238149,150.0,0.00017962,30]
[392185108,1761243238487,5000.0,0.00021945,2]
[392185109,1761243238594,150.0,0.00018817,30]
[392185110,1761243239007,175.0,0.00019673,30]
[392185111,1761243239439,233.34,0.00020528,30]
[392185112,1761243239841,291.67,0.00021384,30]
[392185113,1761243241312,-408.34,0.00021962,2]
[392185114,1761243255932,-350.01,0.00022239,30]
[392185115,1761243259959,242.61594629,0.00021971,7]
[392185116,1761243260476,5000.0,0.00022239,2]
[392185117,1761243270941,-5000.0,0.00022337,7]
[392185118,1761243271343,-218.56,0.00022563,10]
[392185119,1761243271372,-182.13,0.00022563,10]
[392185120,1761243274370,151.78,0.00022563,10]
[392185121,1761243276563,5000.0,0.00022563,2]
[392185122,1761243279323,150.63,0.00022563,3]
[392185123,1761243284896,3896.22,0.00022563,2]
[392185124,1761243284919,1103.78,0.00022563,2]
[392185125,1761243285519,758.92,0.00022563,10]
[392185126,1761243285988,-300.0,0.00022571,2]
[392185127,1761243290278,451.91,0.00022563,3]
[392185128,1761243292656,1548.60734838,0.000225,2]
[392185129,1761243300511,5000.0,0.00022571,2]
[392185130,1761243301949,300.0,0.00022571,2]
[392185131,1761243303961,300.0,0.00022571,2]
[392185132,1761243303988,300.0,0.00022571,2]
[392185133,1761243304020,300.0,0.00022571,2]
[392185134,1761243304047,300.0,0.00022571,2]
[392185135,1761243305609,1200.0,0.00022571,2]
[392185136,1761243305845,231.18254826,0.00016,2]
[392185137,1761243310209,150.0,0.00019748,2]
[392185138,1761243310601,217.08,0.00020688,2]
[392185139,1761243310997,325.61,0.00021628,2]
[392185140,1761243311413,434.15,0.00022569,2]
[392185141,1761243314278,150.0,0.00018021,30]
[392185142,1761243314684,150.0,0.00018879,30]
[392185143,1761243315096,150.0,0.00019737,30]
[392185144,1761243315483,186.07,0.00020595,30]
[392185145,1761243315883,232.58,0.00021453,30]
[392185146,1761243316280,279.1,0.00022311,30]
[392185147,1761243322750,4794.23745174,0.00022572,2]
[392185148,1761243322772,205.76254826,0.00022572,2]
[392185149,1761243336834,804.61344235,0.00022572,2]
[392185150,1761243345480,5000.0,0.00022572,2]
[392185151,1761243363405,300.0,0.00022571,2]
[392185152,1761243368867,3689.63400939,0.00022572,2]
[392185153,1761243368889,1310.36599061,0.00022572,2]
[392185154,1761243386233,150.0,0.00019688,2]
[392185155,1761243386933,159.18,0.00020625,2]
[392185156,1761243387341,238.77,0.00021563,2]
[392185157,1761243387722,318.35,0.000225,2]
[392185158,1761243390577,150.0,0.00013818,30]
[392185159,1761243390990,150.0,0.00014476,30]
[392185160,1761243391384,150.0,0.00015134,30]
[392185161,1761243391638,5000.0,0.00022572,2]
[392185162,1761243391802,150.0,0.00015792,30]
[392185163,1761243392212,170.55,0.0001645,30]
[392185164,1761243392621,204.66,0.00017108,30]
[392185165,1761243393019,238.77,0.00017766,30]
[392185166,1761243393457,272.88,0.00018424,30]
[392185167,1761243393860,306.98,0.00019082,30]
[392185168,1761243406387,-234.28532605,0.00022572,2]
[392185169,1761243406417,-500.0,0.00022572,2]
[392185170,1761243406446,-500.0,0.00022572,2]
[392185171,1761243406475,-500.0,0.00022572,2]
[392185172,1761243406505,-500.0,0.00022572,2]
[392185173,1761243406532,-500.0,0.00022572,2]
[392185174,1761243406560,-218.38644672,0.00022572,2]
[392185175,1761243406588,-500.0,0.00022572,2]
[392185176,1761243406617,-500.0,0.00022572,2]
[392185177,1761243406645,-500.0,0.00022572,2]
[392185178,1761243406674,-500.0,0.00022572,2]
[392185179,1761243406942,-500.0,0.00022572,2]
[392185180,1761243406974,-500.0,0.00022572,2]
[392185181,1761243407002,-500.0,0.00022572,2]
[392185182,1761243407031,-500.0,0.00022572,2]
[392185183,1761243407059,-500.0,0.00022572,2]
[392185184,1761243407088,-500.0,0.00022572,2]
[392185185,1761243407119,-500.0,0.00022572,2]
[392185186,1761243407150,-500.0,0.00022572,2]
[392185187,1761243407179,-500.0,0.00022572,2]
[392185188,1761243407209,-500.0,0.00022572,2]
[392185189,1761243407368,-500.0,0.00022572,2]
[392185190,1761243407395,-500.0,0.00022572,2]
[392185191,1761243407424,-392.66646835,0.00022572,2]
[392185192,1761243407452,-500.0,0.00022572,2]
[392185193,1761243407479,-500.0,0.00022572,2]
[392185194,1761243407507,-500.0,0.00022572,2]
[392185195,1761243407535,-500.0,0.00022572,2]
[392185196,1761243407564,-500.0,0.00022572,2]
[392185197,1761243407592,-500.0,0.00022572,2]
[392185198,1761243407620,-500.0,0.00022572,2]
[392185199,1761243407705,-500.0,0.00022572,2]
[392185200,1761243407734,-500.0,0.00022572,2]
[392185201,1761243407764,-500.0,0.00022572,2]
[392185202,1761243407794,-500.0,0.00022572,2]
[392185203,1761243407825,-500.0,0.00022572,2]
[392185204,1761243407854,-500.0,0.00022572,2]
[392185205,1761243407883,-500.0,0.00022572,2]
[392185206,1761243407912,-500.0,0.00022572,2]
[392185207,1761243407940,-317.72843976,0.00022572,2]
[392185208,1761243407966,-160.0,0.00022572,2]
[392185209,1761243414322,1044.55312048,0.00022573,2]
[392185210,1761243414346,3955.44687952,0.00022573,2]
[392185211,1761243422574,-6626.09423248,0.00022573,2]
[392185212,1761243425756,300.0,0.00022572,2]
[392185213,1761243426123,905.5065392,0.000225,2]
[392185214,1761243437127,5000.0,0.00022573,2]
[392185215,1761243460537,3794.5034608,0.00022573,2]
[392185216,1761243460559,1205.4965392,0.00022573,2]
[392185217,1761243461587,150.0,0.00019402,2]
[392185218,1761243462010,150.0,0.00020326,2]
[392185219,1761243462450,150.0,0.0002125,2]
[392185220,1761243462870,182.93,0.00022174,2]
[392185221,1761243466520,150.0,0.00017769,30]
[392185222,1761243466925,150.0,0.00018615,30]
[392185223,1761243467341,150.0,0.00019461,30]
[392185224,1761243467754,150.0,0.00020307,30]
[392185225,1761243468173,150.0,0.00021153,30]
[392185226,1761243468565,150.0,0.00021999,30]
[392185227,1761243482396,170.25746415,0.00022486,2]
[392185228,1761243483356,5000.0,0.00022573,2]
[392185229,1761243487060,300.0,0.00022572,2]
[392185230,1761243501131,1355.03142985,0.00022486,2]
[392185231,1761243506135,436.2945668,0.00022573,2]
[392185232,1761243506158,4563.7054332,0.00022573,2]
[392185233,1761243513255,587.86758654,0.00022572,2]
[392185234,1761243513313,500.0,0.00022572,2]
[392185235,1761243513353,500.0,0.00022572,2]
[392185236,1761243513388,488.07405204,0.00022572,2]
[392185237,1761243518661,6208.2157931,0.00021447,2]
[392185238,1761243527858,-7152.15713512,0.00022573,2]
[392185239,1761243527939,-10000.01,0.00022573,2]
[392185240,1761243528079,-10000.01,0.00022573,2]
[392185241,1761243528198,-10000.01,0.00022573,2]
[392185242,1761243533868,-5000.0,0.00022347,7]
[392185243,1761243533913,-0.01,0.00022573,2]
[392185244,1761243533989,-10000.01,0.00022573,2]
[392185245,1761243534107,-10000.01,0.00022573,2]
[392185246,1761243534303,-10000.01,0.00022573,2]
[392185247,1761243541893,150.0,0.00017791,30]
[392185248,1761243542307,150.0,0.00018638,30]
[392185249,1761243542704,150.0,0.00019485,30]